Cogmind - Beta 10.2 @@@ ROGUE MODE // 2021.02.01 @ 19:25:39 Player: mr_sack Result: Destroyed by as-74752 with Assembled Rifle Performance ------------- Evolutions (0) 0 Regions Visited (2) 400 Robots Destroyed (20) 100 Value Destroyed (396) 396 Prototype IDs (0) 0 Alien Tech Used (0) 0 Bonus (0) 0 TOTAL SCORE: 896 Bonus ------- None Cogmind --------- Core Integrity 0/250 Matter 283/300 Energy 100/100 System Corruption 22% Temperature Cool (0) Movement Core (150) Ox2 Location -10/Mines Parts ------- > --- POWER (1) -------- (None) > --- PROPULSION (2) --- (None) > --- UTILITY (2) ------ Heat Sink Medium Storage Unit > --- WEAPON (2) ------- (None) > --- INVENTORY (8) ---- Wheel Small Matter Pod (20) Structural Scanner Hacking Suite Peak State ------------ > --- POWER ------------ Ion Engine > --- PROPULSION ------- Light Treads Wheel > --- UTILITY ---------- Improved Heat Sink Medium Storage Unit > --- WEAPON ----------- Particle Gun Mining Laser > --- INVENTORY -------- Ion Engine Ion Engine Wheel Hacking Suite Mining Laser Explosive Trap Explosive Trap [Rating: 11] Favorites ----------- Power Ion Engine Engine Ion Engine Propulsion Wheel Treads Light Treads Wheel Wheel Utility Improved Terrain Scanner Device Improved Terrain Scanner Storage Small Storage Unit Processor Seismic Analyzer Weapon EM Pulse Gun Energy Gun EM Pulse Gun Energy Cannon Beam Cannon Special Weapon Mining Laser Build | -11 -10 -10 ------- Run | Scr Mat Min Slots Evolved . | . . . Power . | . . . Propulsion . | . . . Utility . | . . . Weapon . | . . . Parts Attached 33 | 10 14 9 Power 5 | 1 2 2 Engine 5 | 1 2 2 Core . | . . . Reactor . | . . . Propulsion 11 | 4 4 3 Treads 2 | 1 1 . Leg . | . . . Wheel 9 | 3 3 3 Hover . | . . . Flight . | . . . Utility 6 | 3 1 2 Device 3 | 1 . 2 Storage 2 | 1 1 . Processor 1 | 1 . . Hackware . | . . . Protection . | . . . Artifact . | . . . Weapon 11 | 2 7 2 Energy Gun 8 | 2 6 . Energy Cannon 1 | . 1 . Ballistic Gun . | . . . Ballistic Cannon . | . . . Launcher . | . . . Special Weapon 2 | . . 2 Impact Weapon . | . . . Slashing Weapon . | . . . Piercing Weapon . | . . . Special Melee Weapon . | . . . Unidentified Prototypes . | . . . Parts Lost 16 | . 6 10 Power 2 | . . 2 Propulsion 5 | . 1 4 Utility 2 | . 1 1 Weapon 7 | . 4 3 Highest Loss Streak 4 | . 3 4 Average Slot Usage (%) 91 | . 96 80 Engine 13 | . 14 13 Treads 12 | . 13 8 Wheel 14 | . 13 16 Device 13 | . 13 13 Storage 14 | . 14 14 Energy Gun 13 | . 16 4 Energy Cannon 6 | . 9 . Special Weapon 2 | . . 8 Naked Turns . | . . . Heaviest Build 19 | 12 19 18 Greatest Support 20 | 20 20 20 Greatest Overweight (x) 5 | 1 5 4 Average Overweight (x) . | . . . Largest Inventory Capacity 8 | 6 8 8 Average Capacity 6 | 5 6 8 Most Carried 8 | 6 7 8 Average Carried 5 | 4 6 4 Final Capacity 8 | 6 8 8 Final Carried 7 | 6 7 4 Class Distribution -------------------- 92% | Mutant 7% | Scavenger-Mutant Dominant Class ---------------- Mutant | -10/Materials Mutant | -10/Mines Resources | -11 -10 -10 ----------- Run | Scr Mat Min Matter Collected 490 | 300 125 65 Remotely . | . . . Salvage Created 705 | 228 477 . Parts 38 | 16 22 . Haulers Intercepted 1 | . 1 . Recyclers Shooed . | . . . Parts Field Recycled . | . . . Retrieved Matter . | . . . Parts Self-Destructed . | . . . Prevented . | . . . Kills | -11 -10 -10 ------- Run | Scr Mat Min Combat Hostiles Destroyed 10 | . 9 1 Guns 6 | . 6 . Cannons 3 | . 2 1 AOE 1 | . 1 . Classes Destroyed 7 | 3 3 1 Worker 2 | 2 . . Tunneler 5 | 5 . . Hauler 1 | . 1 . Recycler 1 | 1 . . Operator 2 | . 2 . Grunt 9 | . 9 . Assembled 1 | . . 1 Best Kill Streak 7 | 7 3 1 Combat Bots Only 2 | . 2 1 Max Kills in Single Turn 3 | 3 1 1 Gunslinging . | . . . Exploded 1 | . 1 . Melee . | . . . Uniques/NPCs Destroyed . | . . . Combat | -11 -10 -10 -------- Run | Scr Mat Min Damage Taken 1270 | 32 612 626 Core 258 | 32 134 92 Absorbed by Shields . | . . . Core Remaining (%) 87 | 87 . . Volleys Fired 60 | 9 48 3 Largest 2 | 2 2 2 Hottest 200 | 80 115 200 Shots Fired 112 | 18 90 4 Gun 82 | 18 64 . Cannon 26 | . 26 . Launcher . | . . . Special 4 | . . 4 Kinetic . | . . . Thermal 47 | . 43 4 Explosive . | . . . Electromagnetic 65 | 18 47 . Robot Hit Streak 7 | 5 7 3 Robot Miss Streak 3 | 1 3 1 Penetration Max . | . . . Secondary Targets . | . . . Shots Hit Robots 71 | 10 58 3 Core Hits 28 | 9 18 1 Critical Hits . | . . . Critical Kills . | . . . Critical Parts Destroyed . | . . . Melee Attacks . | . . . Impact . | . . . Slashing . | . . . Piercing . | . . . Sneak Attacks . | . . . Combat Hostiles . | . . . Follow-up Attacks . | . . . Damage Inflicted 1137 | 210 855 72 Guns 612 | 124 488 . Cannons 207 | . 207 . Explosions 246 | 86 160 . Melee . | . . . Ramming . | . . . Kinetic . | . . . Thermal 609 | 86 451 72 Explosive . | . . . Electromagnetic 528 | 124 404 . Impact . | . . . Slashing . | . . . Piercing . | . . . Highest Corruption 22 | . . 22 Average Corruption 9 | . . 9 Corruption Purged . | . . . Effects 8 | . . 8 Message Errors 1 | . . 1 Matter Fused 3 | . . 3 Heat Flow Errors 1 | . . 1 Data Loss (minor) 1 | . . 1 Misdirections 2 | . . 2 Overload Shots . | . . . Overflow Damage 12 | . 9 3 Projectiles 3 | . . 3 Explosions 9 | . 9 . Melee . | . . . Knockbacks . | . . . Impact . | . . . Kinetic . | . . . Secondary . | . . . Self-Inflicted Damage 119 | 33 86 . Shots 4 | 1 3 . Rammed 1 | . . 1 Targets Rammed 1 | . . 1 Kicked . | . . . Crushed . | . . . Highest Temperature 336 | 48 336 114 Average Temperature 104 | 19 116 63 Received Heat Transfer 334 | . 294 40 Effects 3 | . 3 . Energy Bleed 1 | . 1 . Interference 2 | . 2 . Siege Activations . | . . . Robots Corrupted . | . . . Combat Hostiles . | . . . Parts Fried 1 | . 1 . Impact Corruptions . | . . . Robots Melted . | . . . Combat Hostiles . | . . . Parts Melted 3 | 1 2 . Heat Transferred 1316 | 200 966 150 Parts Sabotaged . | . . . Parts Stolen . | . . . Parts Stripped . | . . . Power Chain Reactions 5 | 1 4 . Missiles Intercepted . | . . . Alert | -11 -10 -10 ------- Run | Scr Mat Min Peak Influence 251 | 40 251 75 Initial 75 | . 26 75 Average 94 | 19 137 45 Maximum Alert Level 1 | . 1 . Low Security (%) 95 | 100 92 100 Level 1 4 | . 7 . Level 2 . | . . . Level 3 . | . . . Level 4 . | . . . Level 5 . | . . . High Security . | . . . Max Security . | . . . Squads Dispatched 7 | . 7 . Investigation 2 | . 2 . Extermination . | . . . Reinforcement 5 | . 5 . Assault . | . . . Garrison . | . . . Intercept . | . . . Construction Impeded . | . . . Haulers Reinforced . | . . . Stealth | -11 -10 -10 --------- Run | Scr Mat Min Distress Signals 2 | . 2 . Communications Jammed . | . . . Distress Signals . | . . . Times Spotted 38 | . 25 13 Peak Tracking Total 7 | . 6 7 Tactical Retreats 9 | . 5 4 Traps | -11 -10 -10 ------- Run | Scr Mat Min Traps Triggered 1 | . 1 . Indirectly . | . . . Trap Hack Attempts . | . . . Triggered . | . . . Disarmed . | . . . Reprogrammed . | . . . Reused 3 | . . 3 Traps Extracted . | . . . Installed 3 | . . 3 Triggered . | . . . Machines | -11 -10 -10 ---------- Run | Scr Mat Min Machines Disabled . | . . . Max in Single Turn . | . . . Machines Sabotaged . | . . . Garrisons Compromised . | . . . Overloaded Fab Kills . | . . . Fab Network Shutdowns . | . . . Hacking | -11 -10 -10 --------- Run | Scr Mat Min Machines Accessed 3 | . 3 . Terminals 2 | . 2 . Fabricators . | . . . Repair Stations . | . . . Recycling Units 1 | . 1 . Scanalyzers . | . . . Garrison Access . | . . . Total Hacks 5 | . 5 . Successful 1 | . 1 . Failed 4 | . 4 . Catastrophic 1 | . 1 . Database Lockouts . | . . . Manual 1 | . 1 . Terminals 4 | . 4 . Fabricators . | . . . Repair Stations . | . . . Recycling Units 1 | . 1 . Scanalyzers . | . . . Garrison Access . | . . . Terminal Hacks . | . . . Fabricator Hacks . | . . . Repair Station Hacks . | . . . Recycling Unit Hacks . | . . . Scanalyzer . | . . . Garrison Access Hacks . | . . . Unauthorized Hacks 1 | . 1 . Terminals . | . . . Fabricators . | . . . Repair Stations . | . . . Recycling Units 1 | . 1 . Tunnel 1 | . 1 . Scanalyzers . | . . . Garrison Access . | . . . Data Cores Recovered . | . . . Used . | . . . Hacking Detections 2 | . 2 . Full Trace Events . | . . . Feedback Events . | . . . Feedback Blocked . | . . . Robot Schematics Acquired . | . . . Robots Built . | . . . Matter . | . . . Time . | . . . Total Robot Build Rating . | . . . Part Schematics Acquired . | . . . Parts Built . | . . . Matter . | . . . Time . | . . . Total Part Build Rating . | . . . Parts Repaired . | . . . Time . | . . . Parts Recycled . | . . . Recycled Matter . | . . . Retrieved Matter . | . . . Retrieved Components . | . . . Parts Scanalyzed . | . . . Part Schematics Acquired . | . . . Parts Damaged . | . . . Bothacking | -11 -10 -10 ------------ Run | Scr Mat Min Used RIF Installer . | . . . Robots Hacked . | . . . Non-combat . | . . . Combat . | . . . Robot Hacks Applied . | . . . Relay Couplers Released . | . . . Robots Rewired . | . . . Allies Hacked . | . . . Hacks Repelled . | . . . Allies | -11 -10 -10 -------- Run | Scr Mat Min Total Allies . | . . . Largest Group . | . . . Highest-Rated Group . | . . . Highest-Rated Ally . | . . . Total Orders . | . . . Ally Attacks . | . . . Total Damage . | . . . Kills . | . . . Allies Corrupted . | . . . Allies Melted . | . . . Intel | -11 -10 -10 ------- Run | Scr Mat Min Robot Analysis Total . | . . . Derelict Logs Recovered 1 | . . 1 Drone Launches . | . . . Drone Recoveries . | . . . Exploration | -11 -10 -10 ------------- Run | Scr Mat Min Turns Passed 1179 | 188 684 307 Spaces Moved 802 | 148 366 288 Core 14 | 5 2 7 Treads 103 | 3 100 . Legs . | . . . Wheels 685 | 140 264 281 Hover . | . . . Flight . | . . . Fastest Speed 50 | 50 80 80 Average Speed 99 | 94 110 88 Slowest Speed 300 | 160 300 250 Overloaded Moves . | . . . Propulsion Burnouts . | . . . Robots Hopped . | . . . Cave-ins Triggered . | . . . Exploration Rate (%) 39 | 4 56 59 Regions Visited 2 Branch Regions 1 Pre-discovered Areas 2 | . 1 1 Known Exits Taken . | . . . Unknown Exits Taken 2 | 1 1 . Scrap Searched 1 | . . 1 Spaces Dug . | . . . Terrain Destroyed 21 | 2 19 . Melee . | . . . Projectile . | . . . AOE 21 | 2 19 . Terrain Rammed . | . . . Walls Destroyed . | . . . Machines Disabled . | . . . Actions | -11 -10 -10 --------- Run | Scr Mat Min Total 1065 | 175 562 328 Wait 128 | . 114 14 Move 800 | 147 365 288 Hop . | . . . Pick Up 22 | 6 10 6 Fast Attach 11 | 8 2 1 Attach 12 | . 5 7 Detach 1 | 1 . . Swap 10 | 2 7 1 Drop 16 | 2 11 3 Fire 60 | 9 48 3 Melee . | . . . Ram 2 | . . 2 Kick . | . . . Crush . | . . . Escape Stasis . | . . . Rewire . | . . . Trap 3 | . . 3 Miscellaneous . | . . . Route ------- -11/Scrapyard -10/Materials (discovered 2 exits: [*Mat] / [*Min]) -10/Mines History --------- Turn | Location | Event 19 | -11/Scrapyard | Discovered new exit (range 16) 189 | -11/Scrapyard | Entered Materials 315 | -10/Materials | Build established: Mutant 482 | -10/Materials | Discovered new exit (range 6) 621 | -10/Materials | Core integrity fell below 50% 857 | -10/Materials | Discovered new exit (range 10) 873 | -10/Materials | Entered Mines 875 | -10/Mines | Lost 3 parts (1n1u1w) 878 | -10/Mines | Learned location of Storage (-9) 938 | -10/Mines | Assembled infested the area 957 | -10/Mines | Found a hidden stash of uninstalled traps 1044 | -10/Mines | Lost 3 parts (1n2w) 1072 | -10/Mines | System corruption reached 10% 1102 | -10/Mines | Lost 3 parts (1p1n1w) 1168 | -10/Mines | Core integrity fell below 20% 1180 | -10/Mines | Destroyed by as-74752 with Assembled Rifle Last Messages --------------- 01141_ System corrupted: Heat flow error (+148). 01144_ Acquired 16 matter. 01146_ Acquired Structural Scanner. 01152_ Imp. Heat Sink destroyed. 01152_ System corrupted by crushing effect (+3). 01157_ R-06 Scavenger destroyed. 01161_ System corrupted: Matter fused (-9). 01163_ Acquired 9 matter. 01163_ Ion Engine severed. 01165_ Acquired Heat Sink. 01173_ Wheel destroyed. 01173_ System corrupted by crushing effect (+2). 01175_ Wheel destroyed. 01175_ Ion Engine destroyed. 01175_ System corrupted by crushing effect (+5). 01175_ System corrupted by crushing effect (+1). 01175_ Knocked back. 01180_ Slammed into as-74752. 01180_ Heat Sink permanently disabled. 01180_ Destabilizing: Short circuit. Map ----- +----------------------------------------------------+ | ??????????????????????????## ## | | ???????????????????????### # | | ???????????????????????# | | ???????????????????????# | | ???????????????????????+ | | ???????????????????????+ | | ???????????????????????# | | ???????????????????????? | | ??????????????????????### | | ?????????????????????## | | ?????????????????????# | | ?????????????????????# | | ?????????????????????## | | ??????????????????????#### ## | | ?????????????????????????# ## ## | | ?????????????????????????# ## #? | | ?????????????????????????# ## #? | | ???#################?????# ## #? | | ??# a #?????# ## #? | | ??# """" """" """" #?????# ## #? | | ??# """" """" """" #????## ##= #? | | ??# """" """" """" #????# !% #? | | ??# aa *###### ######? | | ??# """"a"""" """"%## %% #??#### | | ??# """" """" """ * ####### # | | ??# """"@"""" """"*## #??## | | ??# a ## #### | | ??# """" """" """" ## = | | ??# """" """" """" ### * | | ??# """" """" """" #?##### """ ! | | ??# #????# """ | | ???#################???## """ | | ??????????????????????## | | ??????????????????????# | | ??????????????????????# | | ??????????????????????# | | ??????????????????????## | | ???????????????????????# # | | ???????????????????????# ## | | ??????????????????????# ##? | | ??????????????????????# #??? | | ??????????????????????## ???? | | ???????????????????????### ???? | | ?????????????????????????## ???? | | ??????????????????????????# ????? | | ????????????????????????????????? | | ????????????????????????????????? | | ????????????????????????????????? | | ????????????????????????????????? | | ????????????????????????????????? | +----------------------------------------------------+ Best States ------------- Heat Dissipation 39 Energy Generation 10 Energy Capacity 250 Matter Stores 300 Matter Capacity 300 Sight Range 16 Terrain Scan Range 16 Terrain Scan Density 60 Evasion (%) 44 Recoil Reduction 1 Item Schematics ----------------- None Robot Schematics ------------------ None Fabricated ------------ Nothing Alien Tech Used ----------------- None Achievements -------------- Brute Force Challenges ------------ None Game ------ Seed DiametricSlugMallet Manual? 0 Play Time 00:19:40 Cumulative 71.2 hours Start 2021.02.01 @ 19:04:53 End 2021.02.01 @ 19:25:39 Sessions 1 Manual Loads 0 Difficulty Rogue Special Mode None Game No. 53 Rogue 48 Adventurer 5 Explorer 0 Win Type - Total 0 Types 0/0/0/0/0/0/0/0/0 Lore% 34 Gallery% 41 Achievement% 30 Wizard Run 0 Options --------- ASCII 0 Keyboard 1 Movement Arrows Keybinds 0 Fullscreen 1 Font 24/Smallcaps Map View 113x50 Tactical HUD 1 Map Filters NONE Filters NONE Steam 1 RUN: 4f136a04-3222-4524-b550-9f45e13c38b5